[Event "Coimbra Queima Fitas Open 2024"]
[Site "Coimbra"]
[Date "2024.04.25"]
[Round "2.8"]
[White "Povshednyi, Ivan"]
[Black "Bras, Hugo Miguel Pereira"]
[Result "1-0"]
[ECO "B14"]
[WhiteElo "2249"]
[BlackElo "1827"]
[Annotator "TA"]
[PlyCount "59"]
[EventDate "2024.04.23"]
[EventType "swiss"]
[EventCountry "POR"]
[SourceTitle "playchess.com"]
[Source "ChessBase"]
[SourceQuality "1"]
[TimeControl "5400+30"]

{[%evp 20,59,14,0,11,6,10,0,0,0,0,0,0,-13,-20,-10,-8,-25,-2,-21,0,0,0,-44,-6,-25,0,-15,0,0,0,0,0,0,324,326,291,314,1111,1087,5569,2584]} 1. c4 {[%emt 0:00:04]} c6 {[%emt 0:03:15][%cal Bc7c6,Bc6d5][%mdl 32]} 2. e4 {[%emt 0:01:24]} d5 {[%emt 0:01:13]} 3. exd5 {[%emt 0:00:16]} cxd5 {[%emt 0:00:09]} 4. d4 {[%emt 0:00:08]} Nf6 {[%emt 0:00:37]} 5. Nc3 {[%emt 0:00:07]} e6 {[%emt 0:00:27]} 6. Nf3 {[%emt 0:00:10]} Be7 {[%emt 0:03:11]} 7. Bd3 {[%emt 0:03:28]} dxc4 {[%emt 0:01:21]} 8. Bxc4 {[%emt 0:00:02]} Nbd7 {[%emt 0:00:36][%cal Bb8d7,Bd7b6,Bb6d5,Bd5f6][%mdl 32]} 9. O-O {[%emt 0:02:15]} O-O {[%emt 0:00:06]} 10. Bg5 {[%emt 0:03:05]} Nb6 {[%emt 0:04:53]} 11. Bd3 {[%emt 0:06:22]} Nfd5 {[%emt 0:09:07]} 12. Bxe7 {[%emt 0:23:23]} Qxe7 {[%emt 0:05:40]} 13. Be4 {[%emt 0:08:28]} Rd8 {[%emt 0:11:26] The position is equal.} 14. Re1 {[%emt 0:12:36]} Nf6 {[%emt 0:07:51]} 15. Qe2 {[%emt 0:03:47]} Nbd5 {[%emt 0:03:49]} 16. Ne5 {[%emt 0:08:55]} Nxe4 {[%emt 0:07:35]} 17. Qxe4 {[%emt 0:00:56]} Nf6 {[%emt 0:00:10]} 18. Qf4 {[%emt 0:03:44]} Qf8 {[%emt 0:10:25]} 19. Qh4 {[%emt 0:06:41]} Bd7 {[%emt 0:02:15]} 20. Re3 {[%emt 0:01:05]} Be8 {[%emt 0:02:07]} 21. Rf3 {[%emt 0:02:33]} Bc6 {[%emt 0:05:11]} 22. Rg3 {[%emt 0:00:57]} Kh8 {[%emt 0:02:42]} 23. Re1 {[%emt 0:00:43]} Rd6 {[%emt 0:03:43]} 24. Ree3 {[%emt 0:05:09][%cal Og3g7]} Rad8 {[%emt 0:08:11]} 25. Rd3 {[%emt 0:00:44]} a6 {[%emt 0:01:40]} 26. h3 {[%emt 0:00:54]} Bd5 $2 {[%mdl 8192] [#]} (26... Ng8 $11) 27. Rxg7 $3 $18 {[%emt 0:00:05][%mdl 512]} Qxg7 {[%emt 0:04:40]} 28. Rg3 {[%emt 0:00:26] Active counter play!} Qxg3 $2 {[%emt 0:01:34]} (28... h6 29. Rxg7 Kxg7 30. Qg3+ Kf8) 29. fxg3 {[%emt 0:00:07]} Ne8 30. Nxf7+ {Weighted Error Value: White=0.07 (flawless) /Black=0.40.  Loses game:     	---       	Black=1      Mistake:       	---       	Black=1      Inaccurate:     	White=1     	Black=2      OK:         	White=6     	Black=4      Best:        	---       	Black=1      Brilliant:      	White=1     	---} (30. Qe7 $142 Ng7 31. Nxf7+ Kg8 32. Nxd8 (32. Nxd6 Rf8 $18) 32... Rxd8 33. Qxd8+ Kf7 34. Nxd5 exd5 35. Qxd5+ Ke8 36. Qg8+ (36. Qxb7 Kf8 $18) 36... Kd7 37. Qxg7+ Ke6 38. Qxb7) 1-0

[Event "Coimbra Queima Fitas Open 2024"]
[Site "Coimbra"]
[Date "2024.04.25"]
[Round "2.9"]
[White "Asvestopoulou, Evdokia"]
[Black "Ribeiro, Gustavo Martins Sant"]
[Result "0-1"]
[ECO "E12"]
[WhiteElo "1835"]
[BlackElo "2226"]
[Annotator "RC"]
[PlyCount "86"]
[EventDate "2024.04.23"]
[EventType "swiss"]
[EventCountry "POR"]
[SourceTitle "playchess.com"]
[Source "ChessBase"]
[SourceQuality "1"]
[TimeControl "5400+30"]

1. d4 {[%emt 0:00:05]} Nf6 {[%emt 0:00:56]} 2. c4 {[%emt 0:00:14]} e6 {[%emt 0:00:04]} 3. Nf3 {[%emt 0:00:14]} b6 {[%emt 0:00:14]} 4. a3 {[%emt 0:01:16]} Bb7 {[%emt 0:01:49]} 5. g3 {[%emt 0:02:40]} c5 {[%emt 0:01:27]} 6. Bg2 {[%emt 0:01:30]} cxd4 {[%emt 0:00:53]} 7. O-O {[%emt 0:00:12]} Be7 {[%emt 0:00:17]} 8. Qxd4 {[%emt 0:02:11]} Nc6 {[%emt 0:00:40]} 9. Qd3 {[%emt 0:01:39]} O-O {[%emt 0:00:09]} 10. Nc3 {[%emt 0:00:04]} d6 {[%emt 0:02:18]} 11. Bf4 {[%emt 0:05:49]} Rc8 {[%emt 0:06:27]} 12. Rfd1 {[%emt 0:11:44]} e5 {[%emt 0:04:35]} 13. Be3 {[%emt 0:06:46]} Na5 {[%emt 0:01:08]} 14. Nd2 {[%emt 0:00:32]} Bxg2 {[%emt 0:01:13]} 15. Kxg2 {[%emt 0:00:02]} Qc7 {[%emt 0:00:06]} 16. Nd5 {[%emt 0:02:33]} Nxd5 {[%emt 0:07:21]} 17. cxd5 {[%emt 0:00:02]} f5 {[%emt 0:00:44]} 18. b4 Nc4 {[%emt 0:02:44]} 19. Nxc4 {[%emt 0:11:22]} e4 {[%emt 0:00:45]} 20. Qb3 {[%emt 0:03:36]} Qxc4 {[%emt 0:00:53]} 21. Qxc4 {[%emt 0:01:25]} Rc6 22. Qc5 Rxc5 {[%emt 0:00:46]} 23. Rdc1 {[%emt 0:02:18]} Rc4 {[%emt 0:00:14]} 24. Rc2 Rfc8 25. Rxc4 {[%emt 0:01:45]} Rxc4 {[%emt 0:00:35]} 26. b5 {[%emt 0:05:20]} Ra4 {[%emt 0:01:18]} 27. Ra2 {[%emt 0:02:06]} Kf8 {[%emt 0:01:34]} 28. f4 {[%emt 0:06:09]} g6 {[%emt 0:01:26]} 29. Kf2 {[%emt 0:03:28]} Ke8 {[%emt 0:00:41]} 30. Ke1 {[%emt 0:02:26]} Bf6 {[%emt 0:00:12]} 31. Bd2 {[%emt 0:04:24]} Bd4 {[%emt 0:00:45]} 32. e3 {[%emt 0:04:58]} Bc5 {[%emt 0:03:07]} 33. Bc1 {[%emt 0:00:01]} Rc4 {[%emt 0:00:06]} 34. Bd2 {[%emt 0:01:52]} Ra4 {[%emt 0:01:36]} 35. Bc1 {[%emt 0:00:22]} h6 {[%emt 0:00:12]} 36. Kd1 {[%emt 0:03:35]} g5 {[%emt 0:01:04]} 37. h4 {[%emt 0:01:35]} Kf7 {[%emt 0:04:00]} 38. h5 {[%emt 0:00:14]} a6 {[%emt 0:05:42]} 39. bxa6 {[%emt 0:02:45]} gxf4 {[%emt 0:03:35]} 40. gxf4 {[%emt 0:00:02]} Rxa6 {[%emt 0:00:24]} 41. a4 {[%emt 0:05:18]} Ra8 {[%emt 0:00:56]} 42. Ke1 {[%emt 0:04:45]} Rg8 {[%emt 0:00:13]} 43. Ba3 {[%emt 0:02:01]} Bxe3 {[%emt 0:00:28]} 0-1

[Event "Coimbra Queima Fitas Open 2024"]
[Site "Coimbra"]
[Date "2024.04.25"]
[Round "2.10"]
[White "Garcia Dorado, Alberto"]
[Black "Guerra, Jose Goulart De Varg"]
[Result "1/2-1/2"]
[ECO "D35"]
[WhiteElo "2218"]
[BlackElo "1813"]
[Annotator "TA"]
[PlyCount "154"]
[EventDate "2024.04.23"]
[EventType "swiss"]
[EventCountry "POR"]
[SourceTitle "playchess.com"]
[Source "ChessBase"]
[SourceQuality "1"]
[TimeControl "5400+30"]

{[%evp 34,154,33,37,41,15,14,0,0,-28,-6,-104,0,0,0,-19,0,-4,0,0,0,-56,0,-23,0,0,0,0,0,0,0,0,6,0,0,0,0,0,0,0,0,0,0,0,0,0,0,0,0,0,0,0,0,0,0,0,0,0,0,-10,0,0,0,0,0,0,0,0,0,0,0,-16,0,0,0,0,0,0,0,0,0,0,0,0,0,0,0,0,0,0,0,0,0,0,0,0,0,0,0,0,0,0,0,0,0,0,0,0,0,0,0,0,0,0,0,0,0,0,0,0,0,0,0]} 1. d4 {[%emt 0:09:03]} Nf6 {[%emt 0:00:04]} 2. c4 {[%emt 0:00:21]} e6 {[%emt 0:00:06]} 3. Nc3 {[%emt 0:00:36]} d5 {[%emt 0:00:08]} 4. cxd5 {[%emt 0:00:08]} Nxd5 {[%emt 0:00:10]} 5. e4 {[%emt 0:00:12]} Nxc3 {[%emt 0:00:08]} 6. bxc3 {[%emt 0:00:03]} c5 {[%emt 0:00:13]} 7. Rb1 $1 {[%emt 0:00:13][%mdl 4] is more profitable than 7.Nf3 at the moment.} cxd4 {[%emt 0:00:12] D35: Queen's Gambit Declined: Exchange Variation.} 8. cxd4 {[%emt 0:00:04]} e5 {[%emt 0:00:16]} 9. d5 {[%emt 0:06:54]} Bd6 $146 {[%emt 0:00:35]} ({Predecessor:} 9... Bc5 10. Nf3 O-O 11. Be2 Nd7 12. O-O Qe7 13. Bg5 f6 14. Bd2 Bd6 15. Be3 Nc5 {1-0 Tregubov,P (2579)-Swiercz,D (2649) Titled Tuesday intern Qual4 25th April blitz 2017 (7)}) 10. Nf3 {[%emt 0:03:14]} O-O {[%emt 0:00:43]} 11. Bc4 {[%emt 0:01:02]} b6 {[%emt 0:01:38]} 12. O-O {[%emt 0:00:14]} Bg4 {[%emt 0:02:37]} 13. h3 {[%emt 0:00:50]} Bxf3 {[%emt 0:00:59]} 14. Qxf3 {[%emt 0:00:33]} Qh4 {[%emt 0:02:16]} 15. Bb5 {[%emt 0:05:16]} g6 {[%emt 0:05:49]} 16. g4 {[%emt 0:02:35]} Rd8 {[%emt 0:02:13]} 17. Qg3 {[%emt 0:11:59]} Qxg3+ {[%emt 0:10:48]} 18. fxg3 {[%emt 0:01:13]} a6 {[%emt 0:00:25]} 19. Ba4 {[%emt 0:01:01]} b5 {[%emt 0:03:16]} 20. Bd1 {[%emt 0:03:12]} Nd7 {[%emt 0:01:32]} 21. Be3 {[%emt 0:05:41]} Rdc8 {[%emt 0:02:52]} 22. Rf3 {[%emt 0:06:18]} (22. Kg2 $11) 22... Bc5 {[%emt 0:01:27]} ({Black should try} 22... Rc4 $17 23. Bb3 Rxe4) 23. a4 $11 {[%emt 0:02:01]} Rab8 {[%emt 0:02:52]} 24. axb5 {[%emt 0:02:34]} axb5 {[%emt 0:00:52]} 25. Bb3 {[%emt 0:01:08]} Bxe3+ {[%emt 0:06:49]} 26. Rxe3 {[%emt 0:00:03]} Nc5 {[%emt 0:00:14]} 27. Kf2 {[%emt 0:01:34]} ({Better is} 27. d6 $11) 27... Ra8 {[%emt 0:06:02]} (27... b4 $15) 28. Kf3 {[%emt 0:03:15]} Rcb8 {[%emt 0:10:12]} 29. Rc3 {[%emt 0:04:03]} Nxb3 {[%emt 0:01:54]} 30. Rcxb3 {[%emt 0:01:04]} Ra5 {[%emt 0:00:15]} 31. Ke3 {[%emt 0:03:44]} Kf8 {[%emt 0:00:26]} 32. Kd3 {[%emt 0:00:45]} Ke7 {[%emt 0:00:15]} 33. Rc3 {[%emt 0:00:56]} Rb7 {[%emt 0:02:28]} 34. g5 {[%emt 0:07:24]} Ra4 {[%emt 0:02:12]} 35. Rcb3 {[%emt 0:00:47]} Rd4+ {[%emt 0:01:30]} 36. Ke3 {[%emt 0:00:07]} b4 {[%emt 0:00:38]} 37. Rc1 {[%emt 0:01:16]} Ra7 {[%emt 0:02:09]} 38. Rcb1 {[%emt 0:02:18]} Rb7 {[%emt 0:01:55]} 39. R1b2 {[%emt 0:01:03]} Kd6 {[%emt 0:02:05]} 40. Rd3 {[%emt 0:03:33]} Rc4 {[%emt 0:02:07]} 41. h4 {[%emt 0:00:43]} Rb6 {[%emt 0:04:03]} 42. Rf2 {[%emt 0:05:06]} Ke7 {[%emt 0:14:27]} 43. d6+ {[%emt 0:03:20]} Rxd6 {[%emt 0:00:21]} 44. Rxf7+ $1 {[%emt 0:00:05]} Kxf7 {[%emt 0:00:16]} 45. Rxd6 {[%emt 0:00:02]} Rc3+ {[%emt 0:01:18]} 46. Rd3 {[%emt 0:00:13]} Rc4 {[%emt 0:02:01]} 47. Rd7+ {[%emt 0:00:19]} Kg8 {[%emt 0:00:51]} 48. Re7 {[%emt 0:02:42]} b3 {[%emt 0:03:34]} 49. Rb7 $1 {[%emt 0:00:05]} Rc3+ {[%emt 0:00:24]} 50. Kf2 {[%emt 0:00:16]} Rc2+ {[%emt 0:00:36]} 51. Kf3 {[%emt 0:00:07]} b2 {[%emt 0:02:05]} 52. Kg4 {[%emt 0:01:14]} Re2 {[%emt 0:00:51]} 53. Kf3 {[%emt 0:00:58]} Rc2 {[%emt 0:00:41]} 54. Ke3 {[%emt 0:00:30]} Kf8 {[%emt 0:00:18]} 55. Kd3 {[%emt 0:00:08]} Rg2 {[%emt 0:00:11]} 56. Kc4 {[%emt 0:00:08]} Rd2 {[%emt 0:00:36]} 57. Kc3 {[%emt 0:00:34]} Rd4 {[%emt 0:00:42]} 58. Rxb2 {[%emt 0:00:09]} (58. Rxh7 {leads to mate.} b1=Q (58... b1=B $2 59. Rh8+ Kf7 60. g4 $19) 59. Rh8+ Kg7) 58... Rxe4 {[%emt 0:00:07]} 59. Kd3 {[%emt 0:00:06]} Rg4 {[%emt 0:00:47]} 60. Rg2 $1 {[%emt 0:01:03]} Ke7 {[%emt 0:00:17]} 61. Ke3 {[%emt 0:00:10]} Kd6 {[%emt 0:00:16]} 62. Rd2+ {[%emt 0:00:22]} Ke7 {[%emt 0:00:26]} 63. Kf3 {[%emt 0:00:08]} Ra4 {[%emt 0:00:14]} 64. Rb2 {[%emt 0:00:17]} Ra3+ {[%emt 0:00:32]} 65. Ke4 {[%emt 0:00:57]} Rxg3 {[%emt 0:00:43]} 66. Kxe5 {[%emt 0:00:06]} Re3+ {[%emt 0:00:31]} 67. Kf4 {[%emt 0:00:07]} Rd3 {[%emt 0:00:55]} 68. Rb8 {[%emt 0:00:35]} Rd7 {[%emt 0:00:27]} 69. Rh8 {[%emt 0:00:33]} Ke6 {[%emt 0:00:15]} 70. Kg4 {[%emt 0:00:47]} Rd4+ {[%emt 0:00:31]} 71. Kg3 {[%emt 0:00:06]} Rd3+ {[%emt 0:00:14]} 72. Kf2 $1 {[%emt 0:00:11]} Rd7 {[%emt 0:00:19]} 73. Kg3 {[%emt 0:02:50]} Rd3+ {[%emt 0:00:11]} 74. Kf4 {[%emt 0:00:23]} Rd4+ {[%emt 0:00:14]} 75. Kg3 {[%emt 0:00:15]} Rd3+ {[%emt 0:00:06]} 76. Kf4 {[%emt 0:00:04]} Rd4+ {[%emt 0:00:05]} 77. Kg3 {[%emt 0:00:05]} Rd3+ 1/2-1/2

[Event "Coimbra Queima Fitas Open 2024"]
[Site "Coimbra"]
[Date "2024.04.25"]
[Round "2.11"]
[White "Pinto, Jose Joao Meireles A"]
[Black "Farias, David Nuno Moita Est"]
[Result "1-0"]
[ECO "B21"]
[WhiteElo "1829"]
[BlackElo "2194"]
[Annotator "TA"]
[PlyCount "47"]
[EventDate "2024.04.23"]
[EventType "swiss"]
[EventCountry "POR"]
[SourceTitle "playchess.com"]
[Source "ChessBase"]
[SourceQuality "1"]
[TimeControl "5400+30"]

{[%evp 16,47,8,-22,-24,0,0,-21,-18,-14,18,27,39,39,43,4,5,0,0,0,28,0,0,0,0,-34,0,0,0,-2,0,-12,662,660]} 1. e4 {[%emt 0:04:38]} c5 {[%emt 0:00:20]} 2. d4 {[%emt 0:00:50]} cxd4 {[%emt 0:00:10]} 3. c3 {[%emt 0:00:07]} Nf6 {[%emt 0:00:29]} 4. e5 {[%emt 0:01:14]} Nd5 {[%emt 0:00:08]} 5. cxd4 {[%emt 0:00:43]} d6 {[%emt 0:00:20]} 6. Nf3 {[%emt 0:04:29]} Nc6 {[%emt 0:02:30]} 7. Bc4 {[%emt 0:04:43]} e6 {[%emt 0:00:27]} 8. O-O {[%emt 0:04:34]} Be7 {[%emt 0:00:45]} 9. Nc3 {[%emt 0:04:20]} Nxc3 {[%emt 0:04:02]} 10. bxc3 {[%emt 0:00:13]} dxe5 {[%emt 0:00:57]} 11. Nxe5 {[%emt 0:05:01]} Nxe5 {[%emt 0:03:45] The position is equal.} 12. dxe5 {[%emt 0:00:11]} Bd7 {[%emt 0:03:56]} 13. Qg4 {[%emt 0:04:56]} Kf8 {[%emt 0:09:55]} 14. Rd1 {[%emt 0:13:51]} Qc7 {[%emt 0:04:38][%cal Oh7h5]} 15. Be3 {[%emt 0:09:17]} h5 {[%emt 0:08:42]} 16. Qe2 {[%emt 0:09:16]} g6 {[%emt 0:18:24]} 17. Bb5 {[%emt 0:06:00]} Bc6 {[%emt 0:13:11]} 18. Qc4 {[%emt 0:02:55]} Kg7 {[%emt 0:05:35]} 19. Bxc6 {[%emt 0:00:40]} bxc6 {[%emt 0:00:16]} 20. Bc5 {[%emt 0:04:32]} Rhd8 {[%emt 0:05:32] Wards off Bd6} 21. Bxe7 {[%emt 0:03:01]} Qxe7 {[%emt 0:00:04]} 22. Qxc6 {[%emt 0:00:31]} Rac8 {[%emt 0:01:11]} 23. Qf3 {[%emt 0:00:19]} Rc5 $2 {[%emt 0:02:37][%mdl 8192] [#]} (23... Qg5 $11) 24. Qf6+ $1 {[%emt 0:00:20][%mdl 512] Weighted Error Value: White=0.11 (very precise) /Black=0.54.  Loses game:     	---       	Black=1      Inaccurate:     	White=3     	Black=3      OK:         	White=7     	Black=4      Brilliant:      	White=1     	---} 1-0

[Event "Coimbra Queima Fitas Open 2024"]
[Site "Coimbra"]
[Date "2024.04.25"]
[Round "2.12"]
[White "Ermida, Ricardo Carreira Das"]
[Black "Pinsach Gelabert, Alexandre"]
[Result "1/2-1/2"]
[ECO "B53"]
[WhiteElo "1825"]
[BlackElo "2169"]
[Annotator "TA"]
[PlyCount "146"]
[EventDate "2024.04.23"]
[EventType "swiss"]
[EventCountry "POR"]
[SourceTitle "playchess.com"]
[Source "ChessBase"]
[SourceQuality "1"]
[TimeControl "5400+30"]

{[%evp 21,146,0,0,0,0,0,5,0,0,0,33,31,66,54,62,39,52,27,33,33,38,22,30,0,27,25,49,11,35,0,0,13,13,0,11,0,10,13,10,0,0,11,25,32,14,16,18,0,13,16,33,29,31,0,0,0,0,0,0,0,0,0,0,0,0,0,0,0,0,0,0,0,0,0,0,0,92,0,0,0,0,0,0,0,0,0,0,0,0,0,0,0,0,0,0,0,0,0,0,0,0,0,8,0,8,0,0,0,0,0,0,0,0,0,0,0,0,0,0,0,0,0,0,0,0,0,0]} 1. e4 {[%emt 0:03:16]} c5 {[%emt 0:00:36]} 2. Nf3 {[%emt 0:00:54]} d6 {[%emt 0:00:39]} 3. d4 {[%emt 0:00:06]} cxd4 {[%emt 0:00:08]} 4. Qxd4 {[%emt 0:00:08]} Nc6 {[%emt 0:01:14]} 5. Bb5 {[%emt 0:00:09]} Bd7 {[%emt 0:00:45]} 6. Bxc6 {[%emt 0:00:10]} Bxc6 {[%emt 0:00:28]} 7. Nc3 {[%emt 0:00:17]} Nf6 {[%emt 0:01:21]} 8. Bg5 {[%emt 0:00:37]} e6 {[%emt 0:04:40]} 9. O-O-O {[%emt 0:01:45]} Be7 {[%emt 0:01:51]} 10. Rhe1 {[%emt 0:01:47]} O-O {[%emt 0:06:52]} 11. e5 {[%emt 0:05:54]} dxe5 {[%emt 0:04:27] B53: Sicilian: 2...d6: Lines with Qxd4.} 12. Nxe5 {[%emt 0:00:15]} Qxd4 {[%emt 0:22:12]} 13. Rxd4 {[%emt 0:00:10]} Rfc8 {[%emt 0:06:00]} 14. Nxc6 {[%emt 0:00:52]} Rxc6 {[%emt 0:00:34]} 15. Ne4 {[%emt 0:17:11]} Rac8 {[%emt 0:12:24]} 16. Re2 {[%emt 0:00:35]} e5 {[%emt 0:05:25]} 17. Rd1 $146 {[%emt 0:04:29]} ({Predecessor:} 17. Rd3 Kf8 18. Nxf6 Bxf6 19. Bxf6 Rxf6 20. Rd7 Rb8 21. a4 Re6 22. Re3 g5 23. g4 {½-½ Delgado Crespo,M (2296)-Rogule,L (2309) Olympiad Women-37 2006 (10)}) 17... b5 {[%emt 0:04:45]} 18. Nxf6+ {[%emt 0:06:11]} gxf6 {[%emt 0:00:45]} 19. Be3 {[%emt 0:00:35]} R8c7 {[%emt 0:02:58]} 20. Rd5 {[%emt 0:07:11]} a6 {[%emt 0:02:21]} 21. a3 {[%emt 0:07:22]} Kg7 {[%emt 0:05:02]} 22. Kd1 {[%emt 0:03:50]} Re6 {[%emt 0:01:15]} 23. Bd2 {[%emt 0:02:59]} Bc5 {[%emt 0:00:59]} 24. Ba5 {[%emt 0:03:56]} Rc8 {[%emt 0:01:09]} 25. f3 {[%emt 0:01:54]} Bd4 {[%emt 0:01:00]} 26. c3 {[%emt 0:01:44]} Bg1 {[%emt 0:00:39]} 27. h3 {[%emt 0:00:45]} Kg6 {[%emt 0:01:24]} 28. Ke1 {[%emt 0:01:27]} Bc5 {[%emt 0:02:53]} 29. Re4 {[%emt 0:07:10]} h5 {[%emt 0:00:58]} 30. Bb4 {[%emt 0:04:39]} Bb6 {[%emt 0:00:59]} 31. a4 {[%emt 0:04:11]} Rd8 {[%emt 0:04:06]} 32. Rxd8 {[%emt 0:01:00]} Bxd8 {[%emt 0:00:01]} 33. axb5 {[%emt 0:00:32]} axb5 {[%emt 0:00:11]} ({Much worse is} 33... f5 $6 34. Rc4 $16) 34. Bc5 {[%emt 0:02:24]} Ba5 {[%emt 0:01:03]} 35. Re2 {[%emt 0:01:46]} f5 {[%emt 0:00:38]} 36. Rd2 {[%emt 0:00:22]} Bb6 {[%emt 0:03:17]} 37. Bxb6 {[%emt 0:00:31]} Rxb6 38. Rd5 {[%emt 0:01:06]} Kf6 {[%emt 0:02:02]} 39. Rc5 {[%emt 0:01:55]} h4 {[%emt 0:00:33]} 40. Ke2 {[%emt 0:00:35]} Rb8 {[%emt 0:00:40]} 41. Kf2 {[%emt 0:00:49]} b4 {[%emt 0:00:24]} 42. c4 {[%emt 0:01:30]} Rd8 {[%emt 0:00:45]} 43. Ke2 {[%emt 0:00:33]} Rg8 {[%emt 0:00:27]} 44. Kf2 {[%emt 0:00:17]} Rd8 {[%emt 0:00:14]} 45. Ke2 {[%emt 0:00:06]} Rg8 {[%emt 0:00:51]} 46. Kf2 {[%emt 0:00:05]} Ra8 {[%emt 0:00:15]} 47. Rb5 {[%emt 0:00:11]} Ra4 {[%emt 0:00:15]} 48. Rb6+ {[%emt 0:01:11]} Kg5 {[%emt 0:00:14]} (48... Ke7 $11) 49. c5 {[%emt 0:00:13]} (49. Ke3 $16) 49... Ra5 $11 {[%emt 0:00:04]} 50. Rxb4 {[%emt 0:00:25]} (50. c6 $5 Rc5 $8 51. Ke3 $11 (51. Rxb4 Rxc6 52. f4+ exf4 $11)) 50... Rxc5 {[%emt 0:00:02]} 51. Kf1 {[%emt 0:01:23]} Rc1+ {[%emt 0:00:30]} 52. Kf2 {[%emt 0:00:09]} Rc2+ {[%emt 0:00:01]} 53. Kf1 {[%emt 0:00:02]} f6 {[%emt 0:01:26]} 54. Kg1 {[%emt 0:00:22]} f4 {[%emt 0:01:30]} 55. Rb5 {[%emt 0:00:13]} Kf5 {[%emt 0:00:31]} 56. Rb4 {[%emt 0:00:20]} Ke6 {[%emt 0:01:03]} 57. Rb6+ {[%emt 0:00:08]} Ke7 {[%emt 0:00:10]} 58. Kf1 {[%emt 0:00:48]} Rd2 {[%emt 0:00:14]} 59. Rb7+ {[%emt 0:00:39]} Kd6 {[%emt 0:00:30]} 60. Rb6+ {[%emt 0:00:17]} Kd5 {[%emt 0:00:48]} 61. Rxf6 {[%emt 0:00:20]} Rxb2 {[%emt 0:00:12]} 62. Ra6 {[%emt 0:01:09]} Rd2 {[%emt 0:01:11]} 63. Ra4 {[%emt 0:00:36]} Rc2 {[%emt 0:00:25]} 64. Rb4 {[%emt 0:00:27]} Rc1+ {[%emt 0:00:34]} 65. Kf2 {[%emt 0:00:06]} Rc2+ {[%emt 0:00:01]} 66. Kf1 {[%emt 0:00:01]} Rc4 {[%emt 0:00:18]} 67. Rxc4 {[%emt 0:02:53]} Kxc4 {[%emt 0:00:01]} 68. Ke2 {[%emt 0:00:19]} Kc3 {[%emt 0:00:37]} 69. Ke1 {[%emt 0:00:09]} Kd3 {[%emt 0:00:11]} 70. Kd1 {[%emt 0:00:14]} Ke3 {[%emt 0:00:25]} 71. Ke1 {[%emt 0:00:06]} Kd3 {[%emt 0:00:19]} 72. Kd1 {[%emt 0:00:07]} Ke3 {[%emt 0:00:13]} 73. Ke1 {[%emt 0:00:06]} Kd3 {[%emt 0:00:49]} 1/2-1/2

[Event "Coimbra Queima Fitas Open 2024"]
[Site "Coimbra"]
[Date "2024.04.25"]
[Round "2.13"]
[White "Dias, Ivo Rodrigues"]
[Black "Rocha, Miguel Feio Guimarae"]
[Result "1-0"]
[ECO "B90"]
[WhiteElo "2145"]
[BlackElo "1800"]
[Annotator "TA"]
[PlyCount "59"]
[EventDate "2024.04.23"]
[EventType "swiss"]
[EventCountry "POR"]
[SourceTitle "playchess.com"]
[Source "ChessBase"]
[SourceQuality "1"]
[TimeControl "5400+30"]

{[%evp 20,59,28,28,22,22,33,28,31,21,40,28,74,71,71,70,132,50,50,52,77,79,82,86,85,80,224,125,283,282,297,272,277,285,1195,1095,5983,5827,6283,5487,29967,5414]} 1. e4 {[%emt 0:00:04]} c5 {[%emt 0:00:18]} 2. Nf3 {[%emt 0:00:10]} d6 {[%emt 0:00:03]} 3. d4 {[%emt 0:00:26]} cxd4 {[%emt 0:00:22]} 4. Nxd4 {[%emt 0:00:03]} Nf6 {[%emt 0:00:06]} 5. Nc3 {[%emt 0:00:18]} a6 {[%emt 0:00:25]} 6. Be3 {[%emt 0:00:20]} e5 {[%emt 0:00:06]} 7. Nb3 {[%emt 0:00:08]} Be6 {[%emt 0:00:12]} 8. f3 {[%emt 0:00:11]} Be7 {[%emt 0:00:11]} 9. Qd2 {[%emt 0:00:12]} h5 {[%emt 0:00:16]} 10. Nd5 {[%emt 0:00:54]} Nxd5 {[%emt 0:02:35]} 11. exd5 {[%emt 0:00:07]} Bf5 {[%emt 0:00:09]} 12. Be2 {[%emt 0:00:50]} Nd7 {[%emt 0:02:26]} 13. O-O {[%emt 0:00:33]} O-O {[%emt 0:03:40] White has an edge.} 14. Na5 {[%emt 0:05:37]} Qc7 {[%emt 0:07:58]} 15. c4 {[%emt 0:00:43]} Bf6 {[%emt 0:04:53]} (15... Nf6 $11 {should be considered.}) 16. Rac1 $16 {[%emt 0:04:27]} b6 {[%emt 0:07:57]} 17. Nc6 {[%emt 0:05:39]} Nb8 {[%emt 0:04:18]} (17... Rfe8 $14) 18. Nxb8 {[%emt 0:03:18]} (18. g4 $6 Nxc6 19. gxf5 (19. dxc6 hxg4 20. fxg4 Be4 $15) 19... Nd4 $11) ({Better is} 18. f4 $1 $16 {[%cal Rf4e5] Black must now prevent fxe5.} Nxc6 19. fxe5 (19. dxc6 Be4 $11) 19... Nxe5 20. Rxf5) 18... Raxb8 $14 {[%emt 0:00:15]} 19. f4 {[%emt 0:00:29] aiming for fxe5.} exf4 {[%emt 0:03:20]} 20. Rxf4 {[%emt 0:00:48]} Bg6 {[%emt 0:00:27] [#]} 21. Rxf6 $1 {[%emt 0:35:57]} gxf6 {[%emt 0:00:52]} 22. Bd4 $1 {[%emt 0:00:03] White is more active.} Kh7 {[%emt 0:08:10] [#] Prevents Qh6+.} (22... Qe7 $16 {keeps fighting.}) 23. Bxf6 {[%emt 0:00:56] Black is weak on the dark squares} (23. Bxh5 $1 $18 {[%cal Oc1c3] Strongly threatening Rc3!} Rbe8 (23... Bxh5 24. Qd3+ Bg6 25. Qh3+ Kg7 26. Qh4 $18) 24. Bxf6 Qc5+ (24... Bxh5 25. Qg5 Qc5+ 26. Kh1) 25. Bd4) 23... Rfe8 $2 {[%emt 0:01:12] [#]} (23... Rg8 $16) 24. Bxh5 $1 $18 {[%emt 0:01:59][%mdl 512] A strong pair of Bishops.} Qc8 {[%emt 0:03:18] Dodges Bg4} (24... Bxh5 25. Qg5 Qc5+ 26. Kh1) (24... Qd7 25. Bf3) 25. Bf3 {[%emt 0:07:23]} Qf5 {[%emt 0:02:58]} 26. Qd4 {[%emt 0:00:27] White threatens Qh4+ and mate.} Bh5 $2 {[%emt 0:03:52]} (26... Re4 27. Bxe4 (27. Qxe4 Qxf6 28. Qe2 Kg7 $18) 27... Qxe4) 27. Qh4 {[%emt 0:02:37]} Kg6 {[%emt 0:00:28]} 28. Rf1 {[%emt 0:02:40]} Bxf3 {[%emt 0:07:52]} 29. Rxf3 {[%emt 0:00:25] White wants to mate with Rg3+.} Qb1+ {[%emt 0:00:54]} 30. Rf1 {[%emt 0:00:10] Weighted Error Value: White=0.10 (very precise) /Black=0.64.  Mistake:       	White=2     	Black=5      Inaccurate:     	---       	Black=1      OK:         	White=8     	Black=3      Best:        	White=1     	Black=1      Strong:       	White=1     	---        Brilliant:      	White=2     	---} 1-0